lending/lending_fUSD_20251111
["ID","MTS","AMOUNT","RATE_DAILY","PERIOD"]
[393670121,1762902644598,-509.2817549,0.00035616,7]
[393670122,1762902644608,-509.2817549,0.00035616,7]
[393670125,1762902644618,-509.2817549,0.00035616,7]
[393670126,1762902644627,-509.2817549,0.00035616,7]
[393670129,1762902644636,-509.2817549,0.00035616,7]
[393670131,1762902644646,-509.2817549,0.00035616,7]
[393670132,1762902644657,-509.2817549,0.00035616,7]
[393670134,1762902644667,-509.2817549,0.00035616,7]
[393670136,1762902644676,-509.2817549,0.00035616,7]
[393670138,1762902644686,-509.2817549,0.00035616,7]
[393670140,1762902644695,-509.2817549,0.00035616,7]
[393670142,1762902644705,-509.2817549,0.00035616,7]
[393670145,1762902644714,-509.2817549,0.00035616,7]
[393670147,1762902644724,-509.2817549,0.00035616,7]
[393670149,1762902644733,-509.2817549,0.00035616,7]
[393670151,1762902644743,-509.2817549,0.00035616,7]
[393670153,1762902644752,-509.2817549,0.00035616,7]
[393670155,1762902644761,-509.2817549,0.00035616,7]
[393670157,1762902644771,-509.2817549,0.00035616,7]
[393670159,1762902644780,-509.2817549,0.00035616,7]
[393670161,1762902644790,-509.2817549,0.00035616,7]
[393670163,1762902644799,-509.2817549,0.00035616,7]
[393670165,1762902644809,-509.2817549,0.00035616,7]
[393670167,1762902644818,-509.2817549,0.00035616,7]
[393670169,1762902644828,-509.2817549,0.00035616,7]
[393670171,1762902644839,-509.2817549,0.00035616,7]
[393670173,1762902644849,-509.2817549,0.00035616,7]
[393670175,1762902644860,-509.2817549,0.00035616,7]
[393670177,1762902644870,-509.2817549,0.00035616,7]
[393670179,1762902644880,-500.0,0.00035616,7]
[393670181,1762902644889,-500.0,0.00035616,7]
[393670183,1762902644899,-500.0,0.00035616,7]
[393670185,1762902644909,-500.0,0.00035616,7]
[393670187,1762902644918,-500.0,0.00035616,7]
[393670189,1762902644928,-500.0,0.00035616,7]
[393670191,1762902644937,-500.0,0.00035616,7]
[393670193,1762902644947,-500.0,0.00035616,7]
[393670195,1762902644959,-500.0,0.00035616,7]
[393670197,1762902644968,-500.0,0.00035616,7]
[393670199,1762902644978,-500.0,0.00035616,7]
[393670201,1762902644987,-500.0,0.00035616,7]
[393670203,1762902644997,-292.25380245,0.00035616,7]
[393670205,1762902645006,-500.0,0.00035616,7]
[393670207,1762902645016,-500.0,0.00035616,7]
[393670208,1762902645025,-500.0,0.00035616,7]
[393670209,1762902645034,-500.0,0.00035616,7]
[393670210,1762902645044,-500.0,0.00035616,7]
[393670211,1762902645053,-500.0,0.00035616,7]
[393670212,1762902645063,-500.0,0.00035616,7]
[393670213,1762902645072,-500.0,0.00035616,7]
[393670214,1762902645082,-500.0,0.00035616,7]
[393670215,1762902645091,-500.0,0.00035616,7]
[393670216,1762902645101,-500.0,0.00035616,7]
[393670217,1762902645110,-500.0,0.00035616,7]
[393670218,1762902645121,-500.0,0.00035616,7]
[393670219,1762902645130,-500.0,0.00035616,7]
[393670220,1762902645140,-151.0,0.00035616,31]
[393670221,1762902645149,-151.0,0.00035616,31]
[393670222,1762902645159,-189.115758,0.00035616,31]
[393670223,1762902645168,-189.115758,0.00035616,31]
[393670224,1762902645177,-189.115758,0.00035616,31]
[393670225,1762902645186,-189.115758,0.00035616,31]
[393670227,1762902645195,-202.543648,0.00035616,31]
[393670228,1762902645204,-202.543648,0.00035616,31]
[393670229,1762902645214,-202.543648,0.00035616,31]
[393670230,1762902645224,-202.543648,0.00035616,31]
[393670231,1762902645234,-151.0,0.00035616,31]
[393670232,1762902645247,-151.0,0.00035616,31]
[393670233,1762902645256,-151.0,0.00035616,31]
[393670234,1762902645363,-421.065406,0.00035616,31]
[393670235,1762902645391,-421.065406,0.00035616,31]
[393670236,1762902645401,-421.065406,0.00035616,31]
[393670237,1762902645411,-421.065406,0.00035616,31]
[393670238,1762902645420,-305.792427,0.00035616,31]
[393670239,1762902645430,-305.792427,0.00035616,31]
[393670240,1762902645439,-151.0,0.00035616,31]
[393670241,1762902645449,-305.792427,0.00035616,31]
[393670242,1762902645459,-255.704342,0.00035616,31]
[393670243,1762902645469,-305.792427,0.00035616,31]
[393670244,1762902645478,-255.704342,0.00035616,31]
[393670245,1762902645488,-255.704342,0.00035616,31]
[393670246,1762902645498,-287.8682,0.00035616,31]
[393670247,1762902645507,-255.704342,0.00035616,31]
[393670248,1762902645517,-287.8682,0.00035616,31]
[393670249,1762902645526,-287.8682,0.00035616,31]
[393670250,1762902645536,-151.0,0.00035616,31]
[393670251,1762902645545,-151.0,0.00035616,31]
[393670252,1762902645555,-287.8682,0.00035616,31]
[393670253,1762902645564,-151.0,0.00035616,31]
[393670254,1762902645573,-151.0,0.00035616,31]
[393670255,1762902645583,-177.563708,0.00035616,31]
[393670256,1762902645592,-151.0,0.00035616,31]
[393670257,1762902645602,-151.0,0.00035616,31]
[393670258,1762902645611,-204.91063775,0.00035673,5]
[393670259,1762902645622,-6712.69746542,0.00035859,2]
[393670260,1762902645632,-1648.12768487,0.00035859,2]
[393670261,1762902645642,-869.58041,0.00035905,2]
[393670262,1762902645652,-2994.91550426,0.00035973,5]
[393670263,1762902645662,-256.066197,0.00035973,31]
[393670264,1762902645671,-151.0,0.00035973,31]
[393670265,1762902645680,-151.0,0.00035973,31]
[393670266,1762902645690,-151.0,0.00035973,31]
[393670267,1762902645700,-305.792427,0.0003599,31]
[393670268,1762902645710,-305.792427,0.0003599,31]
[393670269,1762902645720,-201.944704,0.0003599,31]
[393670270,1762902645730,-305.792427,0.0003599,31]
[393670271,1762902645741,-255.704342,0.0003599,31]
[393670272,1762902645751,-305.792427,0.0003599,31]
[393670273,1762902645761,-255.704342,0.0003599,31]
[393670274,1762902645771,-255.704342,0.0003599,31]
[393670275,1762902645780,-287.8682,0.0003599,31]
[393670276,1762902645790,-255.704342,0.0003599,31]
[393670277,1762902645800,-287.8682,0.0003599,31]
[393670278,1762902645810,-287.8682,0.0003599,31]
[393670279,1762902645820,-151.0,0.0003599,31]
[393670280,1762902645831,-151.0,0.0003599,31]
[393670281,1762902645842,-287.8682,0.0003599,31]
[393670282,1762902645852,-151.0,0.0003599,31]
[393670283,1762902645862,-151.0,0.0003599,31]
[393670284,1762902645871,-151.0,0.0003599,31]
[393670285,1762902645882,-151.0,0.0003599,31]
[393670286,1762902645891,-523.666724,0.0003599,31]
[393670287,1762902645901,-523.666724,0.0003599,31]
[393670288,1762902645911,-523.666724,0.0003599,31]
[393670289,1762902645920,-523.666724,0.0003599,31]
[393670290,1762902645930,-151.0,0.0003599,31]
[393670291,1762902645939,-151.0,0.0003599,31]
[393670292,1762902645949,-151.0,0.0003599,31]
[393670293,1762902645958,-418.851487,0.0003599,31]
[393670294,1762902645968,-418.851487,0.0003599,31]
[393670295,1762902645977,-418.851487,0.0003599,31]
[393670296,1762902645987,-418.851487,0.0003599,31]
[393670297,1762902645998,-410.83301,0.0003599,31]
[393670298,1762902646007,-1885.228728,0.0003599,31]
[393670299,1762902646017,-410.83301,0.0003599,31]
[393670300,1762902646027,-1885.228728,0.0003599,31]
[393670301,1762902646038,-245.982527,0.0003599,31]
[393670302,1762902646048,-410.83301,0.0003599,31]
[393670303,1762902646058,-1885.228728,0.0003599,31]
[393670304,1762902646068,-245.982527,0.0003599,31]
[393670305,1762902646078,-410.83301,0.0003599,31]
[393670306,1762902646087,-1885.228728,0.0003599,31]
[393670307,1762902646098,-153.753334,0.0003599,31]
[393670308,1762902646107,-245.982527,0.0003599,31]
[393670309,1762902646116,-153.753334,0.0003599,31]
[393670310,1762902646127,-201.529484,0.0003599,31]
[393670311,1762902646136,-245.982527,0.0003599,31]
[393670312,1762902646146,-151.0,0.0003599,31]
[393670313,1762902646156,-151.0,0.0003599,31]
[393670314,1762902646166,-153.753334,0.0003599,31]
[393670315,1762902646175,-201.529484,0.0003599,31]
[393670316,1762902646185,-151.0,0.0003599,31]
[393670317,1762902646195,-151.0,0.0003599,31]
[393670318,1762902646205,-151.0,0.0003599,31]
[393670319,1762902646214,-153.753334,0.0003599,31]
[393670320,1762902646224,-201.529484,0.0003599,31]
[393670321,1762902646234,-201.529484,0.0003599,31]
[393670322,1762902646249,-151.0,0.0003599,31]
[393670323,1762902646259,-151.0,0.0003599,31]
[393670324,1762902646268,-151.0,0.0003599,31]
[393670325,1762902646278,-151.0,0.0003599,31]
[393670326,1762902646289,-151.0,0.0003599,31]
[393670327,1762902646299,-151.0,0.0003599,31]
[393670328,1762902646308,-151.0,0.0003599,31]
[393670329,1762902646321,-151.0,0.0003599,31]
[393670330,1762902646331,-151.0,0.0003599,31]
[393670331,1762902646341,-151.0,0.0003599,31]
[393670332,1762902646350,-210.457869,0.0003599,31]
[393670333,1762902646359,-210.457869,0.0003599,31]
[393670334,1762902646371,-210.457869,0.0003599,31]
[393670335,1762902646381,-210.457873,0.0003599,31]
[393670336,1762902646390,-309.238174,0.0003599,31]
[393670337,1762902646400,-309.238174,0.0003599,31]
[393670338,1762902646410,-309.238174,0.0003599,31]
[393670339,1762902646419,-3452.367488,0.0003599,30]
[393670340,1762902646428,-309.238171,0.0003599,31]
[393670341,1762902646438,-331.741283,0.0003599,31]
[393670342,1762902646447,-3452.367488,0.0003599,30]
[393670343,1762902646456,-331.741283,0.0003599,31]
[393670344,1762902646466,-3452.367488,0.0003599,30]
[393670345,1762902646476,-331.741283,0.0003599,31]
[393670346,1762902646485,-3452.36749,0.0003599,30]
[393670347,1762902646495,-151.0,0.0003599,31]
[393670348,1762902646505,-331.741288,0.0003599,31]
[393670349,1762902646514,-151.0,0.0003599,31]
[393670350,1762902646524,-320.359508,0.0003599,31]
[393670351,1762902646534,-151.0,0.0003599,31]
[393670352,1762902646544,-320.359508,0.0003599,31]
[393670353,1762902646553,-320.359508,0.0003599,31]
[393670354,1762902646564,-320.3595,0.0003599,31]
[393670355,1762902646573,-151.0,0.0003599,31]
[393670356,1762902646583,-1675508.55,0.00036,2]
[393670357,1762902646592,-765.31,0.00036,30]
[393670358,1762902646602,-238.99,0.00036,14]
[393670359,1762902646612,-4704.93,0.00036,14]
[393670360,1762902646622,-1905.55,0.00036,2]
[393670361,1762902646632,-151.0,0.00036,31]
[393670362,1762902646641,-225.839802,0.00036,31]
[393670363,1762902646650,-189.115758,0.00036,31]
[393670364,1762902646659,-189.115758,0.00036,31]
[393670365,1762902646669,-189.115758,0.00036,31]
[393670366,1762902646679,-189.115758,0.00036,31]
[393670367,1762902646688,-202.543648,0.00036,31]
[393670368,1762902646698,-202.543648,0.00036,31]
[393670369,1762902646708,-202.543648,0.00036,31]
[393670370,1762902646718,-202.543648,0.00036,31]
[393670371,1762902646727,-151.0,0.00036,31]
[393670372,1762902646736,-421.065406,0.00036,31]
[393670373,1762902646745,-421.065406,0.00036,31]
[393670374,1762902646754,-421.065406,0.00036,31]
[393670375,1762902646763,-421.065406,0.00036,31]
[393670376,1762902646774,-305.792427,0.00036,31]
[393670378,1762902646784,-305.792427,0.00036,31]
[393670380,1762902646793,-305.792427,0.00036,31]
[393670382,1762902646803,-255.704342,0.00036,31]
[393670384,1762902646813,-305.792427,0.00036,31]
[393670387,1762902646822,-255.704342,0.00036,31]
[393670388,1762902646831,-255.704342,0.00036,31]
[393670390,1762902646840,-287.8682,0.00036,31]
[393670392,1762902646850,-255.704342,0.00036,31]
[393670394,1762902646859,-287.8682,0.00036,31]
[393670395,1762902646870,-287.8682,0.00036,31]
[393670396,1762902646879,-151.0,0.00036,31]
[393670397,1762902646888,-151.0,0.00036,31]
[393670398,1762902646899,-287.8682,0.00036,31]
[393670399,1762902646909,-151.0,0.00036,31]
[393670400,1762902646919,-151.0,0.00036,31]
[393670401,1762902646930,-226.89923233,0.00036,120]
[393670402,1762902646939,-151.0,0.00036,31]
[393670403,1762902646949,-151.0,0.00036,31]
[393670404,1762902646960,-523.666724,0.00036,31]
[393670405,1762902646970,-523.666724,0.00036,31]
[393670406,1762902646980,-523.666724,0.00036,31]
[393670407,1762902646989,-523.666724,0.00036,31]
[393670408,1762902646999,-151.0,0.00036,31]
[393670409,1762902647009,-151.0,0.00036,31]
[393670410,1762902647018,-151.0,0.00036,31]
[393670411,1762902647029,-418.851487,0.00036,31]
[393670412,1762902647038,-418.851487,0.00036,31]
[393670413,1762902647048,-418.851487,0.00036,31]
[393670414,1762902647058,-418.851487,0.00036,31]
[393670415,1762902647068,-410.83301,0.00036,31]
[393670416,1762902647078,-1885.228728,0.00036,31]
[393670418,1762902647088,-410.83301,0.00036,31]
[393670420,1762902647097,-1885.228728,0.00036,31]
[393670423,1762902647107,-245.982527,0.00036,31]
[393670425,1762902647117,-410.83301,0.00036,31]
[393670427,1762902647127,-1885.228728,0.00036,31]
[393670429,1762902647136,-245.982527,0.00036,31]
[393670431,1762902647145,-410.83301,0.00036,31]
[393670433,1762902647154,-1885.228728,0.00036,31]
[393670435,1762902647164,-153.753334,0.00036,31]
[393670437,1762902647176,-245.982527,0.00036,31]
[393670439,1762902647185,-153.753334,0.00036,31]
[393670441,1762902647194,-245.982527,0.00036,31]
[393670443,1762902647203,-201.529484,0.00036,31]
[393670445,1762902647213,-151.0,0.00036,31]
[393670447,1762902647223,-151.0,0.00036,31]
[393670449,1762902647232,-153.753334,0.00036,31]
[393670451,1762902647246,-201.529484,0.00036,31]
[393670453,1762902647257,-264.436168,0.00036,31]
[393670455,1762902647266,-151.0,0.00036,31]
[393670456,1762902647276,-151.0,0.00036,31]
[393670457,1762902647286,-153.753334,0.00036,31]
[393670458,1762902647296,-201.529484,0.00036,31]
[393670459,1762902647306,-201.529484,0.00036,31]
[393670460,1762902647317,-151.0,0.00036,31]
[393670461,1762902647327,-151.0,0.00036,31]
[393670462,1762902647337,-151.0,0.00036,31]
[393670463,1762902647347,-151.0,0.00036,31]
[393670464,1762902647356,-151.0,0.00036,31]
[393670465,1762902647366,-151.0,0.00036,31]
[393670466,1762902647376,-151.0,0.00036,31]
[393670467,1762902647386,-151.0,0.00036,31]
[393670468,1762902647396,-208.764744,0.00036,31]
[393670469,1762902647405,-1250.0,0.00036047,2]
[393670470,1762902647415,-600.0,0.00036077,2]
[393670471,1762902647424,-2500.0,0.00036101,2]
[393670472,1762902647433,-914.263548,0.00036164,30]
[393670473,1762902647442,-914.263548,0.00036164,30]
[393670474,1762902647452,-914.263548,0.00036164,30]
[393670475,1762902647461,-914.263548,0.00036164,30]
[393670476,1762902647471,-914.263548,0.00036164,30]
[393670477,1762902647480,-914.263548,0.00036164,30]
[393670478,1762902647489,-914.263548,0.00036164,30]
[393670479,1762902647498,-914.263548,0.00036164,30]
[393670480,1762902647507,-914.263548,0.00036164,30]
[393670481,1762902647517,-914.263548,0.00036164,30]
[393670482,1762902647526,-914.263548,0.00036164,30]
[393670483,1762902647535,-914.263548,0.00036164,30]
[393670484,1762902647544,-914.263548,0.00036164,30]
[393670485,1762902647554,-914.263548,0.00036164,30]
[393670486,1762902647563,-914.263548,0.00036164,30]
[393670487,1762902647572,-914.263548,0.00036164,30]
[393670488,1762902647582,-166.66,0.00036209,2]
[393670489,1762902647591,-2500.0,0.00036243,2]
[393670490,1762902647601,-1096.46520902,0.00036253,30]
[393670491,1762902647610,-1101.97494401,0.00036253,30]
[393670492,1762902647620,-1099.63762039,0.00036253,30]
[393670493,1762902647629,-1000.0,0.00036253,30]
[393670494,1762902647639,-1245.36409428,0.00036253,30]
[393670495,1762902647648,-1000.0,0.00036253,30]
[393670496,1762902647657,-1073.0,0.000363,2]
[393670497,1762902647667,-500.0,0.00036375,30]
[393670498,1762902647676,-1250.0,0.0003639,2]
[393670499,1762902647685,-2500.0,0.00036437,2]
[393670500,1762902647695,-502.0,0.00036466,2]
[393670501,1762902647704,-5000.0,0.00036568,2]
[393670502,1762902647714,-6712.69746542,0.00036577,2]
[393670503,1762902647724,-1648.12768487,0.00036577,2]
[393670504,1762902647734,-2500.0,0.00036587,2]
[393670505,1762902647742,-2530.45,0.00036648,2]
[393670506,1762902647750,-5000.0,0.0003668,2]
[393670507,1762902647758,-2500.0,0.00036785,2]
[393670508,1762902647767,-523.666724,0.00036785,31]
[393670509,1762902647778,-523.666724,0.00036785,31]
[393670510,1762902647788,-523.666724,0.00036785,31]
[393670511,1762902647798,-523.666732,0.00036785,31]
[393670512,1762902647807,-151.0,0.00036785,31]
[393670513,1762902647844,-151.0,0.00036785,31]
[393670514,1762902647854,-188.342582,0.00036785,31]
[393670515,1762902647864,-454.0,0.00036791,2]
[393670516,1762902647874,-305.792427,0.00036791,31]
[393670517,1762902647884,-305.792427,0.00036791,31]
[393670518,1762902647894,-305.792427,0.00036791,31]
[393670519,1762902647904,-255.704342,0.00036791,31]
[393670520,1762902647913,-305.792423,0.00036791,31]
[393670521,1762902647923,-255.704342,0.00036791,31]
[393670522,1762902647932,-255.704342,0.00036791,31]
[393670523,1762902647941,-287.8682,0.00036791,31]
[393670524,1762902647950,-255.704339,0.00036791,31]
[393670525,1762902647959,-287.8682,0.00036791,31]
[393670526,1762902647968,-287.8682,0.00036791,31]
[393670527,1762902647977,-151.0,0.00036791,31]
[393670528,1762902647987,-287.8682,0.00036791,31]
[393670529,1762902647996,-151.0,0.00036791,31]
[393670530,1762902648006,-151.0,0.00036791,31]
[393670531,1762902648015,-151.0,0.00036791,31]
[393670532,1762902648024,-151.0,0.00036791,31]
[393670533,1762902648035,-418.851487,0.00036791,31]
[393670534,1762902648044,-418.851487,0.00036791,31]
[393670535,1762902648054,-418.851487,0.00036791,31]
[393670536,1762902648063,-418.851496,0.00036791,31]
[393670537,1762902648073,-410.83301,0.00036791,31]
[393670538,1762902648082,-1885.228728,0.00036791,31]
[393670539,1762902648092,-410.83301,0.00036791,31]
[393670540,1762902648102,-1885.228728,0.00036791,31]
[393670541,1762902648111,-245.982527,0.00036791,31]
[393670542,1762902648121,-410.83301,0.00036791,31]
[393670543,1762902648131,-1885.228728,0.00036791,31]
[393670544,1762902648140,-245.982527,0.00036791,31]
[393670545,1762902648149,-410.833018,0.00036791,31]
[393670546,1762902648158,-153.753334,0.00036791,31]
[393670547,1762902648167,-1885.228736,0.00036791,31]
[393670548,1762902648176,-245.982527,0.00036791,31]
[393670549,1762902648186,-153.753334,0.00036791,31]
[393670550,1762902648195,-245.982535,0.00036791,31]
[393670551,1762902648204,-201.529484,0.00036791,31]
[393670552,1762902648213,-151.0,0.00036791,31]
[393670553,1762902648223,-151.0,0.00036791,31]
[393670554,1762902648232,-153.753334,0.00036791,31]
[393670555,1762902648245,-201.529484,0.00036791,31]
[393670556,1762902648256,-151.0,0.00036791,31]
[393670557,1762902648266,-151.0,0.00036791,31]
[393670558,1762902648275,-153.753341,0.00036791,31]
[393670559,1762902648285,-201.529484,0.00036791,31]
[393670560,1762902648294,-914.263548,0.00036791,30]
[393670561,1762902648304,-201.529494,0.00036791,31]
[393670562,1762902648313,-914.263548,0.00036791,30]
[393670563,1762902648325,-151.0,0.00036791,31]
[393670564,1762902648333,-914.263548,0.00036791,30]
[393670565,1762902648343,-151.0,0.00036791,31]
[393670566,1762902648352,-151.0,0.00036791,31]
[393670567,1762902648361,-914.263551,0.00036791,30]
[393670568,1762902648371,-161.392809,0.00036791,31]
[393670569,1762902648381,-154.934,0.00036791,31]
[393670570,1762902648391,-151.0,0.00036791,31]
[393670571,1762902648401,-151.0,0.00036791,31]
[393670572,1762902648410,-5000.0,0.00036793,2]
[393670573,1762902648423,-453.0,0.00036825,2]
[393670574,1762902648438,-5000.0,0.00036886,2]
[393670575,1762902648447,-202.543648,0.00036886,31]
[393670576,1762902648456,-202.543648,0.00036886,31]
[393670577,1762902648466,-202.543648,0.00036886,31]
[393670578,1762902648475,-202.543648,0.00036886,31]
[393670579,1762902648485,-151.0,0.00036886,31]
[393670580,1762902648495,-421.065406,0.00036886,31]
[393670581,1762902648504,-421.065406,0.00036886,31]
[393670582,1762902648515,-421.065406,0.00036886,31]
[393670583,1762902648524,-421.065406,0.00036886,31]
[393670584,1762902648533,-151.58108702,0.00036937,2]
[393670585,1762902648543,-300.0,0.00036941,2]
[393670586,1762902648554,-2500.0,0.00036958,2]
[393670587,1762902648564,-5000.0,0.00036959,2]
[393670588,1762902648573,-151.0,0.00036959,31]
[393670589,1762902648583,-189.115758,0.00036959,31]
[393670590,1762902648594,-189.115758,0.00036959,31]
[393670591,1762902648606,-189.115758,0.00036959,31]
[393670592,1762902648617,-189.115758,0.00036959,31]
[393670593,1762902648627,-1000.0,0.00036973,5]
[393670594,1762902648639,-5000.0,0.00036976,2]
[393670595,1762902648649,-5000.0,0.00036985,2]
[393670596,1762902648659,-604797.31034011,0.00037,2]
[393670597,1762902648670,-151.0,0.00037,31]
[393670598,1762902648680,-151.0,0.00037,31]
[393670599,1762902648690,-151.0,0.00037,31]
[393670600,1762902648700,-151.0,0.00037,31]
[393670601,1762902648709,-151.0,0.00037,31]
[393670602,1762902648720,-189.115758,0.00037,31]
[393670603,1762902648731,-189.115758,0.00037,31]
[393670604,1762902648741,-189.115758,0.00037,31]
[393670605,1762902648751,-189.115756,0.00037,31]
[393670606,1762902648761,-5087.0,0.00037,2]
[393670607,1762902648771,-202.543648,0.00037,31]
[393670608,1762902648781,-202.543648,0.00037,31]
[393670609,1762902648791,-202.543648,0.00037,31]
[393670610,1762902648801,-202.543645,0.00037,31]
[393670611,1762902648811,-151.0,0.00037,31]
[393670612,1762902648821,-421.065406,0.00037,31]
[393670613,1762902648831,-421.065406,0.00037,31]
[393670614,1762902648840,-421.065406,0.00037,31]
[393670615,1762902648850,-421.065406,0.00037,31]
[393670616,1762902648860,-151.90588802,0.00037084,30]
[393670617,1762902648875,-453.0,0.00037098,2]
[393670618,1762902648884,-174.06,0.00037136,2]
[393670619,1762902648894,-565.67330136,0.00037173,5]
[393670620,1762902648904,-151.0,0.00037198,31]
[393670621,1762902648914,-151.0,0.00037198,31]
[393670622,1762902648924,-151.0,0.00037198,31]
[393670623,1762902648934,-151.0,0.00037198,31]
[393670624,1762902648944,-6712.69746542,0.00037294,2]
[393670625,1762902648954,-1648.12768487,0.00037296,2]
[393670626,1762902648964,-765.31,0.000373,30]
[393670627,1762902648974,-238.99,0.000373,14]
[393670628,1762902648984,-4704.93,0.000373,14]
[393670629,1762902648993,-1905.55,0.000373,2]
[393670630,1762902649003,-600.0,0.00037336,2]
[393670631,1762902649014,-166.66,0.00037366,2]
[393670632,1762902649023,-453.0,0.00037371,120]
[393670633,1762902649033,-626.0,0.00037484,2]
[393670634,1762902649044,-245.03,0.00037518,14]
[393670635,1762902649054,-152.28,0.00037525,60]
[393670636,1762902649063,-474.58131834,0.0003755,2]
[393670637,1762902649074,-152.28,0.00037625,60]
[393670638,1762902649084,-152.28,0.00037725,60]
[393670639,1762902649093,-152.28,0.00037825,60]
[393670640,1762902649103,-869.74,0.00037887,5]
[393670641,1762902649114,-189.68,0.00037905,2]
[393670642,1762902649124,-869.58041,0.00037905,2]
[393670643,1762902649134,-152.28,0.00037925,60]
[393670644,1762902649144,-611.05268893,0.00037932,30]
[393670645,1762902649154,-468150.17227577,0.00038,2]
[393670646,1762902649166,-151.0,0.00038,31]
[393670647,1762902649184,-151.0,0.00038,31]
[393670648,1762902649195,-266.148864,0.00038,31]
[393670649,1762902649205,-163.618182,0.00038,31]
[393670650,1762902649215,-960.811,0.00038,2]
[393670651,1762902649225,-2000.0,0.00038,2]
[393670652,1762902649235,-6712.69746542,0.00038012,2]
[393670653,1762902649249,-1648.12768487,0.00038014,2]
[393670654,1762902649258,-152.28,0.00038025,60]
[393670655,1762902649267,-2045.0,0.00038043,5]
[393670656,1762902649277,-1000.0,0.0003809,2]
[393670657,1762902649290,-152.28,0.00038125,60]
[393670658,1762902649301,-782.82126604,0.00038172,30]
[393670659,1762902649310,-152.28,0.00038225,60]
[393670660,1762902649322,-977.04292717,0.00038252,2]
[393670661,1762902649332,-152.28,0.00038325,60]
[393670662,1762902649341,-624.0,0.00038347,7]
[393670663,1762902649350,-1000.0,0.00038356,2]
[393670664,1762902649360,-1000.0,0.00038356,2]
[393670665,1762902649369,-699.29,0.00038356,2]
[393670666,1762902649379,-699.29,0.00038356,2]
[393670667,1762902649389,-429.74,0.00038356,2]
[393670668,1762902649399,-170.357807,0.00038356,120]
[393670669,1762902649408,-152.28,0.00038425,120]
[393670670,1762902649418,-294.0,0.00038458,7]
[393670671,1762902649427,-626.0,0.00038473,7]
[393670672,1762902649436,-300.0,0.000385,2]
[393670673,1762902649446,-348.39015194,0.000385,2]
[393670674,1762902649455,-294.0,0.00038519,2]
[393670675,1762902649465,-166.66,0.00038523,2]
[393670676,1762902649474,-152.28,0.00038525,120]
[393670677,1762902649483,-150.0,0.00038552,2]
[393670678,1762902649492,-150.0,0.00038552,2]
[393670679,1762902649503,-150.0,0.00038552,2]
[393670680,1762902649512,-150.0,0.00038552,2]
[393670681,1762902649522,-608.0,0.00038552,2]
[393670682,1762902649532,-3426.0,0.00038552,2]
[393670683,1762902649542,-687.459,0.00038552,2]
[393670684,1762902649551,-1317.0,0.00038552,2]
[393670685,1762902649561,-820.0,0.00038552,2]
[393670686,1762902649571,-1597.0,0.00038552,2]
[393670687,1762902649580,-1274.0,0.00038552,2]
[393670688,1762902649590,-813.0,0.00038552,2]
[393670689,1762902649599,-1189.0,0.00038552,2]
[393670690,1762902649608,-906.0,0.00038552,2]
[393670691,1762902649620,-6664.0,0.00038552,2]
[393670692,1762902649630,-2143.0,0.00038552,2]
[393670693,1762902649640,-1279.189,0.00038552,2]